[Event "Fast Chess"]
[Site "ChessKid.com"]
[Date "2020.05.05"]
[Round "1"]
[White "Li, Patrick"]
[Black "Li, Tobias"]
[Result "0-1"]
[ECO "C55"]
[WhiteElo "1146"]
[BlackElo "1305"]
[PlyCount "46"]
[EventDate "2020.??.??"]
[TimeControl "300+10"]
[WhiteClock "0:02:41"]
[BlackClock "0:02:55"]

1. e4 {[%emt 0:00:10]} e5 {[%emt 0:00:13]} 2. Nf3 {[%emt 0:00:10]} Nc6 {
[%emt 0:00:12]} 3. Nc3 {[%emt 0:00:12]} Bc5 {[%emt 0:00:12]} 4. Bc4 {[%emt 0:
00:11]} Nf6 {[%emt 0:00:10]} 5. O-O {[%emt 0:00:11]} O-O {[%emt 0:00:12]} 6.
Nd5 {[%emt 0:00:14]} d6 {[%emt 0:00:15]} 7. d4 {[%emt 0:00:19]} exd4 {[%emt 0:
00:18]} 8. Nxd4 {[%emt 0:00:09]} Bg4 {[%emt 0:00:13]} 9. Qd3 {[%emt 0:00:15]}
Bxd4 {[%emt 0:00:14]} 10. Qxd4 {[%emt 0:00:27]} Nxe4 {[%emt 0:00:51]} 11. Qd3 {
[%emt 0:00:36]} Nf6 {[%emt 0:00:17]} 12. Qg3 {[%emt 0:00:19]} Be6 {[%emt 0:00:
29]} 13. Bh6 {[%emt 0:00:16]} Nh5 {[%emt 0:00:15]} 14. Qg5 {[%emt 0:00:19]}
Qxg5 {[%emt 0:00:15]} 15. Bxg5 {[%emt 0:00:15]} Nf6 {[%emt 0:00:17]} 16. Nxc7 {
[%emt 0:00:13]} Bxc4 {[%emt 0:00:17]} 17. Nxa8 {[%emt 0:00:15]} Bxf1 {[%emt 0:
00:13]} 18. Kxf1 {[%emt 0:00:10]} Rxa8 {[%emt 0:00:13]} 19. Bxf6 {[%emt 0:00:
16]} gxf6 {[%emt 0:00:13]} 20. Re1 {[%emt 0:00:12]} Kf8 {[%emt 0:00:12]} 21.
Re3 {[%emt 0:00:18]} Re8 {[%emt 0:00:11]} 22. h3 {[%emt 0:00:16]} Rxe3 {
[%emt 0:00:16]} 23. fxe3 {[%emt 0:00:12]} Nb4 {[%emt 0:00:12] OnlyHungryKiwi
won by resignation} 0-1

[Event "Fast Chess"]
[Site "ChessKid.com"]
[Date "2020.05.05"]
[Round "2"]
[White "Georgiev, Maximilian"]
[Black "Horvath, Alexander"]
[Result "1-0"]
[ECO "A25"]
[WhiteElo "1017"]
[BlackElo "1309"]
[PlyCount "57"]
[EventDate "2020.??.??"]
[TimeControl "300+10"]
[WhiteClock "0:03:04"]
[BlackClock "0:03:56"]

1. c4 {[%emt 0:00:11]} e5 {[%emt 0:00:11]} 2. g3 {[%emt 0:00:10]} Nc6 {[%emt 0:
00:13]} 3. Bg2 {[%emt 0:00:10]} g6 {[%emt 0:00:16]} 4. e3 {[%emt 0:00:11]} Bg7
{[%emt 0:00:11]} 5. Ne2 {[%emt 0:00:11]} Nf6 {[%emt 0:00:11]} 6. O-O {[%emt 0:
00:12]} O-O {[%emt 0:00:10]} 7. Nbc3 {[%emt 0:00:10]} d6 {[%emt 0:00:14]} 8. f3
{[%emt 0:00:10]} Be6 {[%emt 0:00:14]} 9. b3 {[%emt 0:00:11]} Qc8 {[%emt 0:00:
11]} 10. d3 {[%emt 0:00:10]} Bh3 {[%emt 0:00:11]} 11. Bb2 {[%emt 0:00:13]} Bxg2
{[%emt 0:00:11]} 12. Kxg2 {[%emt 0:00:10]} b6 {[%emt 0:00:15]} 13. a4 {[%emt 0:
00:14]} Ne7 {[%emt 0:00:10]} 14. a5 {[%emt 0:00:12]} bxa5 {[%emt 0:00:11]} 15.
Rxa5 {[%emt 0:00:11]} Qb8 {[%emt 0:00:14]} 16. Rb5 {[%emt 0:00:12]} Qc8 {
[%emt 0:00:15]} 17. Ra5 {[%emt 0:00:17]} c5 {[%emt 0:00:14]} 18. Ra3 {[%emt 0:
00:13]} Qb7 {[%emt 0:00:16]} 19. Qd2 {[%emt 0:00:15]} d5 {[%emt 0:00:21]} 20.
cxd5 {[%emt 0:00:13]} Nexd5 {[%emt 0:00:12]} 21. Nxd5 {[%emt 0:00:10]} Nxd5 {
[%emt 0:00:10]} 22. Rf2 {[%emt 0:00:13]} Ne7 {[%emt 0:00:16]} 23. Rf1 {[%emt 0:
00:17]} Rab8 {[%emt 0:00:16]} 24. Qc2 {[%emt 0:00:12]} Rfc8 {[%emt 0:00:16]}
25. Bc3 {[%emt 0:00:14]} e4 {[%emt 0:00:16]} 26. fxe4 {[%emt 0:00:13]} Bxc3 {
[%emt 0:00:11]} 27. Qxc3 {[%emt 0:00:12]} Qa8 {[%emt 0:00:15]} 28. Qc4 {
[%emt 0:00:14]} Rd8 {[%emt 0:00:36]} 29. Qxf7+ {[%emt 0:00:13] TallSnazzyBall
won - game abandoned} 1-0

[Event "Fast Chess"]
[Site "ChessKid.com"]
[Date "2020.05.05"]
[Round "2"]
[White "Li, Tobias"]
[Black "Halimi, Dorian"]
[Result "1-0"]
[ECO "C50"]
[WhiteElo "1311"]
[BlackElo "1198"]
[Annotator "Fesselung"]
[PlyCount "27"]
[EventDate "2020.??.??"]
[TimeControl "300+10"]
[WhiteClock "0:03:16"]
[BlackClock "0:03:57"]

1. e4 {[%emt 0:00:11]} e5 {[%emt 0:00:11]} 2. Nf3 {[%emt 0:00:10]} Nc6 {
[%emt 0:00:10]} 3. Bc4 {[%emt 0:00:11]} f6 $4 {[%emt 0:00:12]} 4. Bb5 {[%emt 0:
00:20]} Nd4 $4 {[%emt 0:00:17]} 5. Nxe5 {[%emt 0:00:15]} fxe5 {[%emt 0:00:12]}
6. Qh5+ {[%emt 0:00:11]} g6 {[%emt 0:00:29]} 7. Qxe5+ {[%emt 0:00:12]} Qe7 {
[%emt 0:00:17]} 8. Qxh8 {[%emt 0:00:16]} Qxe4+ {[%emt 0:00:12]} 9. Kd1 {
[%emt 0:00:21]} Nxc2 {[%emt 0:00:13]} 10. b3 {[%emt 0:00:21]} Nxa1 {[%emt 0:00:
11]} 11. Re1 {[%emt 0:00:11]} Bg7 {[%emt 0:00:55]} 12. Qxg8+ {[%emt 0:00:21]}
Bf8 {[%emt 0:00:20]} 13. Rxe4+ {[%emt 0:00:13]} Kd8 {[%emt 0:00:15]} 14. Qxf8#
{[%emt 0:00:11] OnlyHungryKiwi won by checkmate} 1-0

[Event "Fast Chess"]
[Site "ChessKid.com"]
[Date "2020.05.05"]
[Round "3"]
[White "Georgiev, Maximilian"]
[Black "Li, Tobias"]
[Result "1-0"]
[ECO "A30"]
[WhiteElo "1031"]
[BlackElo "1298"]
[Annotator "Doppelschach und Matt möglich"]
[PlyCount "159"]
[EventDate "2020.??.??"]
[TimeControl "300+10"]
[WhiteClock "0:00:30"]
[BlackClock "0:01:56"]

1. c4 {[%emt 0:00:11]} c5 {[%emt 0:00:12]} 2. g3 {[%emt 0:00:11]} Nc6 {[%emt 0:
00:11]} 3. Bg2 {[%emt 0:00:10]} e6 {[%emt 0:00:10]} 4. e3 {[%emt 0:00:11]} Nf6
{[%emt 0:00:12]} 5. Ne2 {[%emt 0:00:11]} Be7 {[%emt 0:00:23]} 6. O-O {[%emt 0:
00:11]} O-O {[%emt 0:00:10]} 7. Nbc3 {[%emt 0:00:11]} Re8 {[%emt 0:00:21]} 8.
b3 {[%emt 0:00:12]} b6 {[%emt 0:00:17]} 9. Bb2 {[%emt 0:00:12]} Bb7 {[%emt 0:
00:11]} 10. a4 {[%emt 0:00:12]} a5 {[%emt 0:00:12]} 11. Nb5 {[%emt 0:00:16]}
Nb4 {[%emt 0:00:14]} 12. Nbc3 {[%emt 0:00:15]} Nc6 {[%emt 0:00:13]} 13. Nb5 {
[%emt 0:00:15]} Rb8 {[%emt 0:00:17]} 14. Nbc3 {[%emt 0:00:12]} Nb4 {[%emt 0:00:
13]} 15. Bxb7 {[%emt 0:00:11]} Rxb7 {[%emt 0:00:11]} 16. Kg2 {[%emt 0:00:14]}
Qa8 {[%emt 0:00:16]} 17. Kg1 {[%emt 0:00:11]} Nd3 {[%emt 0:00:44]} 18. Qc2 {
[%emt 0:00:16]} Nxb2 {[%emt 0:00:14]} 19. Qxb2 {[%emt 0:00:10]} Rbb8 {[%emt 0:
00:14]} 20. Nb5 {[%emt 0:00:13]} Rbc8 {[%emt 0:00:16]} 21. Nf4 {[%emt 0:00:13]}
Ne4 {[%emt 0:00:13]} 22. d3 {[%emt 0:00:17]} Ng5 {[%emt 0:00:15]} 23. Nh5 $4 {
[%emt 0:00:16]} Nf3+ {[%emt 0:00:14]} 24. Kg2 $4 {[%emt 0:00:14]} Bf6 {[%emt 0:
00:38]} 25. Nxf6+ {[%emt 0:00:14]} gxf6 {[%emt 0:00:10]} 26. Kh3 {[%emt 0:00:
19]} Ng5+ {[%emt 0:00:15]} 27. Kh4 {[%emt 0:00:16]} Nf3+ {[%emt 0:00:15]} 28.
Kh3 {[%emt 0:00:15]} Ne5 {[%emt 0:00:15]} 29. Nd6 {[%emt 0:00:14]} Nf3 {
[%emt 0:00:19]} 30. Nxc8 {[%emt 0:00:15]} Ng5+ {[%emt 0:00:14]} 31. Kh4 {
[%emt 0:00:14]} Nf3+ {[%emt 0:00:11]} 32. Kg4 {[%emt 0:00:11]} Ne5+ {[%emt 0:
00:12]} 33. Kh4 {[%emt 0:00:13]} Nxd3 {[%emt 0:00:15]} 34. Qxf6 {[%emt 0:00:15]
} Rxc8 {[%emt 0:00:14]} 35. Qg5+ {[%emt 0:00:14]} Kf8 {[%emt 0:00:11]} 36. Qh6+
{[%emt 0:00:15]} Kg8 {[%emt 0:00:12]} 37. Kh3 {[%emt 0:00:20]} Rf8 {[%emt 0:00:
30]} 38. Rad1 {[%emt 0:00:18]} Ne5 {[%emt 0:00:14]} 39. Qg5+ {[%emt 0:00:12]}
Kh8 {[%emt 0:00:12]} 40. Qxe5+ {[%emt 0:00:10]} Kg8 {[%emt 0:00:15]} 41. Rxd7 {
[%emt 0:00:10]} Qf3 {[%emt 0:00:11]} 42. Rd3 {[%emt 0:00:16]} Re8 {[%emt 0:00:
25]} 43. Qf4 {[%emt 0:00:14]} Qh5+ {[%emt 0:00:16]} 44. Qh4 {[%emt 0:00:12]}
Qf5+ {[%emt 0:00:13]} 45. Kg2 {[%emt 0:00:14]} Qxd3 {[%emt 0:00:12]} 46. Qg4+ {
[%emt 0:00:11]} Kf8 {[%emt 0:00:11]} 47. Rd1 {[%emt 0:00:14]} Qxb3 {[%emt 0:00:
18]} 48. Rd7 {[%emt 0:00:12]} Qxa4 {[%emt 0:00:22]} 49. Rb7 {[%emt 0:00:13]}
Qc6+ {[%emt 0:00:11]} 50. Qf3 {[%emt 0:00:16]} Qxf3+ {[%emt 0:00:11]} 51. Kxf3
{[%emt 0:00:10]} Ra8 {[%emt 0:00:10]} 52. Rxb6 {[%emt 0:00:11]} a4 {[%emt 0:00:
10]} 53. Rb1 {[%emt 0:00:13]} a3 {[%emt 0:00:09]} 54. Ra1 {[%emt 0:00:10]} a2 {
[%emt 0:00:10]} 55. Ke2 {[%emt 0:00:10]} Ke7 {[%emt 0:00:10]} 56. Kd2 {[%emt 0:
00:10]} Kd6 {[%emt 0:00:10]} 57. Kc2 {[%emt 0:00:10]} Ke5 {[%emt 0:00:10]} 58.
Kb2 {[%emt 0:00:10]} Ke4 {[%emt 0:00:10]} 59. Rxa2 {[%emt 0:00:10]} Rxa2+ {
[%emt 0:00:11]} 60. Kxa2 {[%emt 0:00:10]} Kd3 {[%emt 0:00:10]} 61. Kb3 {
[%emt 0:00:11]} Ke2 {[%emt 0:00:10]} 62. Ka4 {[%emt 0:00:10]} Kxf2 {[%emt 0:00:
10]} 63. Kb5 {[%emt 0:00:10]} Kxe3 {[%emt 0:00:10]} 64. Kxc5 {[%emt 0:00:10]}
f5 {[%emt 0:00:11]} 65. Kb5 {[%emt 0:00:10]} e5 {[%emt 0:00:10]} 66. c5 {
[%emt 0:00:10]} e4 {[%emt 0:00:10]} 67. c6 {[%emt 0:00:10]} Kf3 {[%emt 0:00:09]
} 68. c7 {[%emt 0:00:11]} e3 {[%emt 0:00:09]} 69. c8=Q {[%emt 0:00:10]} e2 {
[%emt 0:00:09]} 70. Qc6+ {[%emt 0:00:11]} Kf2 {[%emt 0:00:12]} 71. Qc5+ {
[%emt 0:00:15]} Kf1 {[%emt 0:00:11]} 72. Qxf5+ {[%emt 0:00:11]} Ke1 {[%emt 0:
00:11]} 73. Qxh7 {[%emt 0:00:11]} Kd1 {[%emt 0:00:10]} 74. Qb1+ {[%emt 0:00:11]
} Kd2 {[%emt 0:00:11]} 75. h4 {[%emt 0:00:13]} e1=Q {[%emt 0:00:12]} 76. Qxe1+
{[%emt 0:00:10]} Kxe1 {[%emt 0:00:10]} 77. h5 {[%emt 0:00:10]} Ke2 {[%emt 0:00:
09]} 78. h6 {[%emt 0:00:10]} Kf3 {[%emt 0:00:09]} 79. h7 {[%emt 0:00:10]} Kg4 {
[%emt 0:00:09]} 80. h8=Q {[%emt 0:00:10] TallSnazzyBall won by resignation} 1-0

[Event "Fast Chess"]
[Site "ChessKid.com"]
[Date "2020.05.06"]
[Round "1"]
[White "Li, Tobias"]
[Black "Horvath, Alexander"]
[Result "0-1"]
[ECO "C55"]
[WhiteElo "1322"]
[BlackElo "1308"]
[PlyCount "56"]
[EventDate "2020.??.??"]
[TimeControl "900"]
[WhiteClock "0:12:51"]
[BlackClock "0:13:08"]

1. e4 {[%emt 0:00:01]} e5 {[%emt 0:00:02]} 2. Nf3 {[%emt 0:00:03]} Nf6 {
[%emt 0:00:02]} 3. Nc3 {[%emt 0:00:01]} Nc6 {[%emt 0:00:01]} 4. Bc4 {[%emt 0:
00:01]} Nxe4 {[%emt 0:00:08]} 5. Bxf7+ {[%emt 0:00:02]} Kxf7 {[%emt 0:00:06]}
6. Nxe4 {[%emt 0:00:04]} d5 {[%emt 0:00:07]} 7. Nc3 {[%emt 0:00:05]} d4 {
[%emt 0:00:04]} 8. Ne2 {[%emt 0:00:01]} e4 {[%emt 0:00:04]} 9. Ng5+ {[%emt 0:
00:11]} Qxg5 {[%emt 0:00:03]} 10. d3 {[%emt 0:00:01]} Qxg2 {[%emt 0:00:02]} 11.
Rf1 {[%emt 0:00:04]} exd3 {[%emt 0:00:03]} 12. cxd3 {[%emt 0:00:02]} Bb4+ {
[%emt 0:00:05]} 13. Bd2 {[%emt 0:00:02]} Bxd2+ {[%emt 0:00:01]} 14. Qxd2 {
[%emt 0:00:01]} Qxh2 {[%emt 0:00:01]} 15. Qc2 {[%emt 0:00:01]} Rf8 {[%emt 0:00:
03]} 16. Qb3+ {[%emt 0:00:02]} Be6 {[%emt 0:00:05]} 17. Qxb7 {[%emt 0:00:03]}
Ne5 {[%emt 0:00:08]} 18. Qxc7+ {[%emt 0:00:14]} Kg8 {[%emt 0:00:04]} 19. Qc2 {
[%emt 0:00:15]} Rxf2 {[%emt 0:00:25]} 20. Rxf2 {[%emt 0:00:02]} Qh1+ {[%emt 0:
00:01]} 21. Rf1 {[%emt 0:00:01]} Nf3+ {[%emt 0:00:02]} 22. Kf2 {[%emt 0:00:09]}
Qh4+ {[%emt 0:00:13]} 23. Kxf3 {[%emt 0:00:09]} Rf8+ {[%emt 0:00:02]} 24. Kg2 {
[%emt 0:00:02]} Qh3+ {[%emt 0:00:03]} 25. Kg1 {[%emt 0:00:04]} Qg4+ {[%emt 0:
00:07]} 26. Kh1 {[%emt 0:00:06]} Bd5+ {[%emt 0:00:02]} 27. Kh2 {[%emt 0:00:04]}
Qh4+ {[%emt 0:00:03]} 28. Kg1 {[%emt 0:00:02]} Qh1# {[%emt 0:00:03]
KeenOrangeTeeth won by checkmate} 0-1

[Event "Fast Chess"]
[Site "ChessKid.com"]
[Date "2020.05.06"]
[Round "1"]
[White "Halimi, Dorian"]
[Black "Dai, Lana"]
[Result "1/2-1/2"]
[ECO "C50"]
[WhiteElo "1228"]
[BlackElo "1299"]
[Annotator "ungleichfarbige Läufer"]
[PlyCount "170"]
[EventDate "2020.??.??"]
[TimeControl "900"]
[WhiteClock "0:07:25"]
[BlackClock "0:09:12"]

1. e4 {[%emt 0:00:02]} e5 {[%emt 0:00:02]} 2. Bc4 {[%emt 0:00:02]} Nc6 {
[%emt 0:00:02]} 3. Nf3 {[%emt 0:00:02]} h6 {[%emt 0:00:05]} 4. a3 {[%emt 0:00:
04]} Nf6 {[%emt 0:00:02]} 5. Nc3 {[%emt 0:00:04]} Bc5 {[%emt 0:00:03]} 6. h3 {
[%emt 0:00:05]} a6 {[%emt 0:00:01]} 7. O-O {[%emt 0:00:01]} b5 {[%emt 0:00:02]}
8. b4 {[%emt 0:00:06]} bxc4 {[%emt 0:00:02]} 9. bxc5 {[%emt 0:00:01]} O-O {
[%emt 0:00:06]} 10. Nd5 {[%emt 0:00:06]} Nxd5 {[%emt 0:00:02]} 11. exd5 {
[%emt 0:00:01]} Nd4 {[%emt 0:00:08]} 12. Nxe5 {[%emt 0:00:08]} d6 {[%emt 0:00:
14]} 13. Nxc4 {[%emt 0:00:13]} dxc5 {[%emt 0:00:01]} 14. c3 {[%emt 0:00:10]}
Qxd5 {[%emt 0:00:16]} 15. cxd4 {[%emt 0:00:05]} Qxc4 {[%emt 0:00:02]} 16. dxc5
{[%emt 0:00:03]} Qd4 {[%emt 0:00:07]} 17. Qf3 {[%emt 0:00:06]} Qxa1 {[%emt 0:
00:12]} 18. Qxa8 {[%emt 0:00:04]} Qd4 {[%emt 0:00:19]} 19. c6 {[%emt 0:00:08]}
Qb6 {[%emt 0:00:19]} 20. d3 {[%emt 0:00:19]} Be6 {[%emt 0:00:04]} 21. Qb7 {
[%emt 0:00:09]} Qxb7 {[%emt 0:00:23]} 22. cxb7 {[%emt 0:00:01]} Rb8 {[%emt 0:
00:04]} 23. Be3 {[%emt 0:00:06]} Rxb7 {[%emt 0:00:06]} 24. Rc1 {[%emt 0:00:03]}
Bf5 {[%emt 0:00:11]} 25. Bf4 {[%emt 0:00:09]} Bxd3 {[%emt 0:00:08]} 26. Bxc7 {
[%emt 0:00:04]} Rb1 {[%emt 0:00:06]} 27. Rxb1 {[%emt 0:00:05]} Bxb1 {[%emt 0:
00:01]} 28. Kh2 {[%emt 0:00:02]} g5 {[%emt 0:00:02]} 29. g4 {[%emt 0:00:03]} f5
{[%emt 0:00:04]} 30. gxf5 {[%emt 0:00:03]} Bxf5 {[%emt 0:00:01]} 31. Kg3 {
[%emt 0:00:04]} h5 {[%emt 0:00:03]} 32. f4 {[%emt 0:00:11]} gxf4+ {[%emt 0:00:
03]} 33. Kxf4 {[%emt 0:00:02]} Bg6 {[%emt 0:00:02]} 34. Kg5 {[%emt 0:00:01]}
Kg7 {[%emt 0:00:02]} 35. h4 {[%emt 0:00:03]} Be8 {[%emt 0:00:08]} 36. Be5+ {
[%emt 0:00:02]} Kh7 {[%emt 0:00:05]} 37. Bf4 {[%emt 0:00:21]} a5 {[%emt 0:00:
13]} 38. Kf5 {[%emt 0:00:06]} Bd7+ {[%emt 0:00:03]} 39. Kg5 {[%emt 0:00:02]}
Be8 {[%emt 0:00:04]} 40. Kf6 {[%emt 0:00:03]} a4 {[%emt 0:00:03]} 41. Ke7 {
[%emt 0:00:02]} Bc6 {[%emt 0:00:09]} 42. Kd6 {[%emt 0:00:04]} Be8 {[%emt 0:00:
02]} 43. Ke7 {[%emt 0:00:01]} Bb5 {[%emt 0:00:01]} 44. Kd6 {[%emt 0:00:01]} Kg6
{[%emt 0:00:06]} 45. Ke5 {[%emt 0:00:02]} Be8 {[%emt 0:00:09]} 46. Kd5 {
[%emt 0:00:04]} Kf5 {[%emt 0:00:02]} 47. Bg3 {[%emt 0:00:05]} Kg4 {[%emt 0:00:
03]} 48. Be1 {[%emt 0:00:02]} Bf7+ {[%emt 0:00:04]} 49. Ke5 {[%emt 0:00:02]}
Kf3 {[%emt 0:00:13]} 50. Kf6 {[%emt 0:00:05]} Be8 {[%emt 0:00:05]} 51. Ke7 {
[%emt 0:00:06]} Bb5 {[%emt 0:00:03]} 52. Kd6 {[%emt 0:00:01]} Ke2 {[%emt 0:00:
05]} 53. Kc5 {[%emt 0:00:02]} Be8 {[%emt 0:00:01]} 54. Bc3 {[%emt 0:00:03]} Kf3
{[%emt 0:00:07]} 55. Kd6 {[%emt 0:00:03]} Kg4 {[%emt 0:00:02]} 56. Bf6 {
[%emt 0:00:01]} Kf3 {[%emt 0:00:09]} 57. Ke7 {[%emt 0:00:02]} Bb5 {[%emt 0:00:
05]} 58. Kd6 {[%emt 0:00:01]} Ke3 {[%emt 0:00:04]} 59. Kd5 {[%emt 0:00:02]} Kd3
{[%emt 0:00:02]} 60. Be7 {[%emt 0:00:01]} Bc4+ {[%emt 0:00:04]} 61. Ke5 {
[%emt 0:00:02]} Bb5 {[%emt 0:00:07]} 62. Kf5 {[%emt 0:00:01]} Kd4 {[%emt 0:00:
03]} 63. Kg5 {[%emt 0:00:01]} Be8 {[%emt 0:00:02]} 64. Kf6 {[%emt 0:00:05]} Kd5
{[%emt 0:00:05]} 65. Bb4 {[%emt 0:00:09]} Ke4 {[%emt 0:00:06]} 66. Ke7 {
[%emt 0:00:04]} Bb5 {[%emt 0:00:07]} 67. Kd8 {[%emt 0:00:02]} Kf4 {[%emt 0:00:
04]} 68. Be7 {[%emt 0:00:02]} Kf5 {[%emt 0:00:07]} 69. Kc7 {[%emt 0:00:16]} Ke6
{[%emt 0:00:03]} 70. Kb6 {[%emt 0:00:01]} Be8 {[%emt 0:00:03]} 71. Bb4 {
[%emt 0:00:05]} Kf7 {[%emt 0:00:06]} 72. Kc7 {[%emt 0:00:02]} Ke6 {[%emt 0:00:
03]} 73. Kd8 {[%emt 0:00:01]} Bb5 {[%emt 0:00:02]} 74. Be7 {[%emt 0:00:05]} Bd7
{[%emt 0:00:06]} 75. Bg5 {[%emt 0:00:05]} Kd6 {[%emt 0:00:10]} 76. Be7+ {
[%emt 0:00:06]} Ke6 {[%emt 0:00:03]} 77. Bg5 {[%emt 0:00:04]} Bb5 {[%emt 0:00:
05]} 78. Kc7 {[%emt 0:00:07]} Kd5 {[%emt 0:00:04]} 79. Kb6 {[%emt 0:00:02]} Kc4
{[%emt 0:00:04]} 80. Be7 {[%emt 0:00:03]} Be8 {[%emt 0:00:03]} 81. Kc7 {
[%emt 0:00:01]} Kd5 {[%emt 0:00:05]} 82. Kd8 {[%emt 0:00:01]} Bb5 {[%emt 0:00:
05]} 83. Kc7 {[%emt 0:00:02]} Ke6 {[%emt 0:00:06]} 84. Bd8 {[%emt 0:00:02]} Kd5
{[%emt 0:00:06]} 85. Be7 {[%emt 0:00:02]} Ke6 {[%emt 0:00:03] Game drawn by
repetition} 1/2-1/2

[Event "Fast Chess"]
[Site "ChessKid.com"]
[Date "2020.05.06"]
[Round "2"]
[White "Georgiev, Maximilian"]
[Black "Dai, Lana"]
[Result "0-1"]
[ECO "C55"]
[WhiteElo "1300"]
[BlackElo "1308"]
[PlyCount "124"]
[EventDate "2020.??.??"]
[TimeControl "900"]
[WhiteClock "0:06:21"]
[BlackClock "0:11:05"]

1. e4 {[%emt 0:00:03]} e5 {[%emt 0:00:03]} 2. Nf3 {[%emt 0:00:01]} Nc6 {
[%emt 0:00:02]} 3. Bc4 {[%emt 0:00:02]} h6 {[%emt 0:00:03]} 4. Nc3 {[%emt 0:00:
02]} Nf6 {[%emt 0:00:02]} 5. d3 {[%emt 0:00:01]} a6 {[%emt 0:00:02]} 6. Be3 {
[%emt 0:00:03]} b5 {[%emt 0:00:03]} 7. Bb3 {[%emt 0:00:02]} b4 {[%emt 0:00:06]}
8. Ne2 {[%emt 0:00:01]} a5 {[%emt 0:00:05]} 9. a3 {[%emt 0:00:02]} bxa3 {
[%emt 0:00:07]} 10. bxa3 {[%emt 0:00:00]} a4 {[%emt 0:00:03]} 11. Bc4 {[%emt 0:
00:03]} Be7 {[%emt 0:00:20]} 12. O-O {[%emt 0:00:04]} O-O {[%emt 0:00:03]} 13.
h3 {[%emt 0:00:06]} h5 {[%emt 0:00:31]} 14. d4 {[%emt 0:00:02]} exd4 {[%emt 0:
00:02]} 15. Nfxd4 {[%emt 0:00:01]} Nxd4 {[%emt 0:00:01]} 16. Bxd4 {[%emt 0:00:
01]} Nxe4 {[%emt 0:00:08]} 17. Qd3 {[%emt 0:00:05]} d5 {[%emt 0:00:22]} 18. Ba2
{[%emt 0:00:18]} Bf5 {[%emt 0:00:16]} 19. Bb1 {[%emt 0:00:02]} Nd6 {[%emt 0:00:
13]} 20. Qg3 {[%emt 0:00:12]} Bf6 {[%emt 0:00:37]} 21. c4 {[%emt 0:00:13]} dxc4
{[%emt 0:00:08]} 22. Bxf5 {[%emt 0:00:06]} Nxf5 {[%emt 0:00:18]} 23. Qf4 {
[%emt 0:00:20]} Nxd4 {[%emt 0:00:17]} 24. Nxd4 {[%emt 0:00:03]} Bxd4 {[%emt 0:
00:05]} 25. Rfd1 {[%emt 0:00:06]} c5 {[%emt 0:00:35]} 26. Ra2 {[%emt 0:00:05]}
Bxf2+ {[%emt 0:00:24]} 27. Rxf2 {[%emt 0:00:14]} Qxd1+ {[%emt 0:00:03]} 28. Rf1
{[%emt 0:00:01]} Qd4+ {[%emt 0:00:06]} 29. Rf2 {[%emt 0:00:02]} Qa1+ {[%emt 0:
00:13]} 30. Rf1 {[%emt 0:00:02]} Qxa3 {[%emt 0:00:02]} 31. Rf3 {[%emt 0:00:04]}
Qa1+ {[%emt 0:00:13]} 32. Kh2 {[%emt 0:00:02]} Rad8 {[%emt 0:00:27]} 33. Rg3 {
[%emt 0:00:06]} Rd1 {[%emt 0:00:15]} 34. Rxg7+ {[%emt 0:00:11]} Kxg7 {[%emt 0:
00:12]} 35. Qg5+ {[%emt 0:00:02]} Kh7 {[%emt 0:00:10]} 36. Qxh5+ {[%emt 0:00:
01]} Kg8 {[%emt 0:00:10]} 37. Qg4+ {[%emt 0:00:02]} Qg7 {[%emt 0:00:10]} 38.
Qxd1 {[%emt 0:00:02]} Qe5+ {[%emt 0:00:03]} 39. g3 {[%emt 0:00:02]} Qb2+ {
[%emt 0:00:15]} 40. Kg1 {[%emt 0:00:06]} Qc3 {[%emt 0:00:08]} 41. Qg4+ {
[%emt 0:00:03]} Qg7 {[%emt 0:00:06]} 42. Qf3 {[%emt 0:00:04]} Qa1+ {[%emt 0:00:
04]} 43. Kg2 {[%emt 0:00:02]} Qb2+ {[%emt 0:00:02]} 44. Kh1 {[%emt 0:00:03]}
Qc1+ {[%emt 0:00:01]} 45. Kg2 {[%emt 0:00:01]} Qd2+ {[%emt 0:00:02]} 46. Kf1 {
[%emt 0:00:04]} Qc1+ {[%emt 0:00:11]} 47. Kf2 {[%emt 0:00:10]} Qd2+ {[%emt 0:
00:04]} 48. Kf1 {[%emt 0:00:01]} Qd3+ {[%emt 0:00:05]} 49. Qxd3 {[%emt 0:00:04]
} cxd3 {[%emt 0:00:02]} 50. Ke1 {[%emt 0:00:02]} c4 {[%emt 0:00:02]} 51. Kd2 {
[%emt 0:00:01]} Re8 {[%emt 0:00:02]} 52. Kc3 {[%emt 0:00:03]} Re3 {[%emt 0:00:
03]} 53. Kxc4 {[%emt 0:00:02]} d2 {[%emt 0:00:00]} 54. Kd4 {[%emt 0:00:02]} Re2
{[%emt 0:00:02]} 55. Kd3 {[%emt 0:00:02]} d1=Q+ {[%emt 0:00:04]} 56. Kc3 {
[%emt 0:00:02]} Rc2+ {[%emt 0:00:03]} 57. Kb4 {[%emt 0:00:01]} Qb1+ {[%emt 0:
00:02]} 58. Ka5 {[%emt 0:00:01]} Rc5+ {[%emt 0:00:05]} 59. Ka6 {[%emt 0:00:05]}
Qb5+ {[%emt 0:00:07]} 60. Ka7 {[%emt 0:00:02]} Qa5+ {[%emt 0:00:08]} 61. Kb7 {
[%emt 0:00:01]} Qb4+ {[%emt 0:00:04]} 62. Ka7 {[%emt 0:00:01]} Ra5# {[%emt 0:
00:01] TopBrownCave won by checkmate} 0-1

[Event "Fast Chess"]
[Site "ChessKid.com"]
[Date "2020.05.06"]
[Round "2"]
[White "Li, Patrick"]
[Black "Halimi, Dorian"]
[Result "0-1"]
[ECO "C55"]
[WhiteElo "1128"]
[BlackElo "1234"]
[PlyCount "39"]
[EventDate "2020.??.??"]
[TimeControl "900"]
[WhiteClock "0:13:52"]
[BlackClock "0:13:27"]

1. e4 {[%emt 0:00:02]} e5 {[%emt 0:00:01]} 2. Nf3 {[%emt 0:00:00]} Nc6 {
[%emt 0:00:01]} 3. Nc3 {[%emt 0:00:01]} Nf6 {[%emt 0:00:02]} 4. Bc4 {[%emt 0:
00:01]} h6 {[%emt 0:00:04]} 5. O-O {[%emt 0:00:02]} a6 {[%emt 0:00:02]} 6. Nd5
{[%emt 0:00:04]} Bc5 {[%emt 0:00:07]} 7. Nxf6+ {[%emt 0:00:12]} Qxf6 {[%emt 0:
00:02]} 8. Bd5 {[%emt 0:00:05]} Nd4 {[%emt 0:00:04]} 9. Nxd4 {[%emt 0:00:03]}
exd4 {[%emt 0:00:03]} 10. c3 {[%emt 0:00:04]} dxc3 {[%emt 0:00:02]} 11. dxc3 {
[%emt 0:00:02]} Qg6 {[%emt 0:00:05]} 12. Qf3 {[%emt 0:00:11]} f6 {[%emt 0:00:
05]} 13. Qd3 {[%emt 0:00:09]} Qh5 {[%emt 0:00:06]} 14. Qc4 {[%emt 0:00:04]} Bd6
{[%emt 0:00:04]} 15. Bf7+ {[%emt 0:00:03]} Qxf7 {[%emt 0:00:05]} 16. Qxf7+ {
[%emt 0:00:01]} Kxf7 {[%emt 0:00:01]} 17. Be3 {[%emt 0:00:10]} Re8 {[%emt 0:00:
04]} 18. Rfd1 {[%emt 0:00:08]} Rxe4 {[%emt 0:00:04]} 19. f3 {[%emt 0:00:04]}
Rxe3 {[%emt 0:00:06]} 20. Rd5 {[%emt 0:00:07] FullMagentaEclipse won by
resignation} 0-1